bitfinex-derivatives/quotes_BTCF0:USTF0_20251002
["timestamp","ask_amount","ask_price","bid_price","bid_amount"]
[1759376449401,1.13345215,118870.0,118860.0,0.11523425]
[1759376449700,1.12245215,118870.0,118860.0,0.11223425]
[1759376449902,0.003,118870.0,118860.0,0.61032435]
[1759376450103,0.003,118870.0,118860.0,0.61895915]
[1759376450300,0.003,118870.0,118860.0,1.06398618]
[1759376450600,0.003,118870.0,118860.0,0.78884362]
[1759376450795,0.003,118870.0,118860.0,1.06398618]
[1759376451201,0.41208,118880.0,118870.0,0.120863]
[1759376453503,0.41408,118880.0,118870.0,0.131863]
[1759376454005,0.41408,118880.0,118870.0,0.20735725]
[1759376454204,0.41208,118880.0,118870.0,0.19635725]
[1759376454502,0.42708,118880.0,118870.0,0.19935725]
[1759376454702,1.06144102,118880.0,118870.0,0.03978]
[1759376455003,1.46144102,118880.0,118870.0,0.003]
[1759376455601,1.46144102,118880.0,118870.0,0.03978]
[1759376455803,1.82240102,118880.0,118870.0,0.123863]
[1759376456198,1.58168165,118880.0,118870.0,0.123863]
[1759376459200,1.58173165,118880.0,118870.0,0.123863]
[1759376465912,1.2721659,118880.0,118870.0,0.123863]
[1759376466118,1.58173165,118880.0,118870.0,0.123863]
[1759376470918,0.72461575,118880.0,118870.0,0.123863]
[1759376471220,1.49701575,118880.0,118870.0,0.123863]
[1759376472024,1.58109165,118880.0,118870.0,0.123863]
[1759376473227,0.80869165,118880.0,118870.0,0.123863]
[1759376473426,1.58109165,118880.0,118870.0,0.123863]
[1759376474025,0.80869165,118880.0,118870.0,0.123863]
[1759376474225,1.58109165,118880.0,118870.0,0.123863]
[1759376475726,0.72461575,118880.0,118870.0,0.123863]
[1759376475927,1.49701575,118880.0,118870.0,0.123863]
[1759376476225,1.18745,118880.0,118870.0,0.123863]
[1759376476426,1.58109155,118880.0,118870.0,0.123863]
[1759376480127,1.49701575,118880.0,118870.0,0.123863]
[1759376481021,0.72461575,118880.0,118870.0,0.123863]
[1759376481225,1.49697575,118880.0,118870.0,0.123863]
[1759376481927,1.18741,118880.0,118870.0,0.123863]
[1759376482230,1.49697575,118880.0,118870.0,0.123863]
[1759376483221,1.58105145,118880.0,118870.0,0.123863]
[1759376484823,1.49697575,118880.0,118870.0,0.123863]
[1759376485427,1.58105125,118880.0,118870.0,0.123863]
[1759376485634,1.58105125,118880.0,118870.0,0.124073]
[1759376485928,1.49697575,118880.0,118870.0,0.124073]
[1759376488430,0.72461575,118880.0,118870.0,0.124073]
[1759376488633,1.49785575,118880.0,118870.0,0.124073]
[1759376488832,1.48418764,118880.0,118870.0,0.124073]
[1759376489033,0.71094764,118880.0,118870.0,0.124073]
[1759376489235,1.48418764,118880.0,118870.0,0.124073]
[1759376490135,1.47409428,118880.0,118870.0,0.19956725]
[1759376492036,0.70085428,118880.0,118870.0,0.19956725]
[1759376492240,1.47381428,118880.0,118870.0,0.19956725]
[1759376492631,1.16420853,118880.0,118870.0,0.19956725]
[1759376492839,0.30961575,118880.0,118870.0,0.84240022]
[1759376493039,1.08241575,118880.0,118870.0,0.60832872]
[1759376494734,1.08241575,118880.0,118870.0,0.53283447]
[1759376496840,5e-05,118880.0,118870.0,0.53283447]
[1759376497043,0.19228439,118910.0,118900.0,0.1199813]
[1759376497238,0.41779254,118910.0,118900.0,0.12874277]
[1759376497440,1.19035254,118910.0,118900.0,0.12874277]
[1759376498146,1.19035254,118910.0,118900.0,0.16074277]
[1759376498343,1.19435254,118910.0,118900.0,0.16074277]
[1759376498543,1.19635254,118910.0,118900.0,0.17174277]
[1759376499546,1.28040684,118910.0,118900.0,0.1629813]
[1759376504251,1.28040684,118910.0,118900.0,0.17174277]
[1759376504252,0.11422679,118910.0,118900.0,0.17174277]
[1759376504452,0.77671254,118910.0,118900.0,0.17174277]
[1759376506049,0.86076674,118910.0,118900.0,0.17174277]
[1759376506445,0.46714679,118910.0,118900.0,0.17174277]
[1759376506652,0.77671254,118910.0,118900.0,0.17174277]
[1759376507651,0.46714679,118910.0,118900.0,0.17174277]
[1759376507856,0.77671254,118910.0,118900.0,0.17174277]
[1759376509753,0.04791727,118910.0,118900.0,0.17174277]
[1759376509952,0.00605,118910.0,118900.0,0.88130852]
[1759376510157,0.00605,118910.0,118900.0,0.97091985]
[1759376510858,0.00605,118910.0,118900.0,1.0550206]
[1759376511061,1.15012046,118930.0,118920.0,0.1204773]
[1759376511356,1.17540226,118930.0,118920.0,0.1204773]
[1759376511563,1.25944246,118930.0,118920.0,0.04519147]
[1759376512059,1.25944246,118930.0,118920.0,0.12923877]
[1759376512756,1.26244246,118930.0,118920.0,0.15423877]
[1759376513259,1.27544246,118930.0,118920.0,0.15423877]
[1759376517062,1.19140226,118930.0,118920.0,0.15423877]
[1759376517463,1.27544236,118930.0,118920.0,0.15423877]
[1759376518264,1.1567015,118930.0,118920.0,0.15423877]
[1759376518666,1.2407415,118930.0,118920.0,0.15423877]
[1759376518960,1.2407415,118930.0,118920.0,0.03376147]
[1759376519465,1.2410215,118930.0,118920.0,0.03376147]
[1759376520368,1.2410215,118930.0,118920.0,0.04713147]
[1759376520865,1.2410215,118930.0,118920.0,0.025]
[1759376520866,1.91588649,118930.0,118920.0,0.025]
[1759376521269,1.6410215,118930.0,118920.0,0.025]
[1759376525267,1.6410215,118930.0,118920.0,0.1454771]
[1759376525668,0.4684615,118930.0,118920.0,0.17349275]
[1759376526068,1.1922615,118930.0,118920.0,0.17349275]
[1759376527578,1.1922615,118930.0,118920.0,0.15423857]
[1759376528879,1.1922615,118930.0,118920.0,0.04713147]
[1759376529177,1.1922615,118930.0,118920.0,0.03376147]
[1759376532678,1.1923115,118930.0,118920.0,0.03376147]
[1759376534679,1.1923115,118930.0,118920.0,0.07019147]
[1759376534881,1.1923115,118930.0,118920.0,0.04713147]
[1759376537975,1.86717649,118930.0,118920.0,0.025]
[1759376538378,1.88952877,118930.0,118920.0,0.025]
[1759376539283,1.88953293,118930.0,118920.0,0.025]
[1759376540583,1.61466794,118930.0,118920.0,0.025]
[1759376541174,0.89086794,118930.0,118920.0,0.025]
[1759376541780,1.66294794,118930.0,118920.0,0.025]
[1759376542684,1.26294794,118930.0,118920.0,0.07006147]
[1759376543283,1.2405915,118930.0,118920.0,0.04761147]
[1759376543783,1.26293841,118930.0,118920.0,0.04761147]
[1759376543996,1.2629382,118930.0,118920.0,0.04761147]
[1759376544486,1.2405915,118930.0,118920.0,0.03376147]
[1759376545282,1.26293694,118930.0,118920.0,0.03376147]
[1759376545985,1.26293735,118930.0,118920.0,0.03376147]
[1759376546288,1.2405915,118930.0,118920.0,0.03376147]
[1759376547982,0.4685115,118930.0,118920.0,0.03376147]
[1759376548288,1.2405915,118930.0,118920.0,0.03376147]
[1759376549591,0.4685115,118930.0,118920.0,0.15411097]
[1759376549791,1.2405515,118930.0,118920.0,0.55411097]
[1759376550993,0.0413318,118930.0,118920.0,0.82897596]
[1759376551288,0.00596161,118930.0,118920.0,0.9301111]
[1759376551483,0.00596161,118930.0,118920.0,0.33074036]
[1759376551685,0.2808266,118930.0,118920.0,0.24058242]
[1759376551893,0.02117131,118930.0,118920.0,0.24058242]
[1759376552390,0.02117131,118930.0,118920.0,0.22084375]
[1759376553288,0.02117131,118930.0,118920.0,0.24007578]
[1759376554994,0.02117131,118930.0,118920.0,0.16458153]
[1759376559993,0.2960363,118930.0,118920.0,0.16458153]
[1759376560198,0.02117131,118930.0,118920.0,0.16458153]
[1759376560592,0.2960363,118930.0,118920.0,0.16458153]
[1759376560793,0.02117131,118930.0,118920.0,0.16458153]
[1759376561086,0.01296161,118930.0,118920.0,0.16458153]
[1759376562496,1.13137649,118950.0,118940.0,0.0978853]
[1759376562796,1.13137649,118950.0,118940.0,0.14023953]
[1759376563091,1.13137649,118950.0,118940.0,0.1203353]
[1759376563296,1.13289649,118950.0,118940.0,0.1203353]
[1759376563498,0.01518762,118950.0,118940.0,0.05610252]
[1759376563792,1.24574229,118960.0,118950.0,0.1203283]
[1759376564296,1.26085879,118960.0,118950.0,0.1203283]
[1759376565997,0.1280865,118960.0,118950.0,0.1203283]
[1759376566496,0.1430865,118960.0,118950.0,0.1203283]
[1759376566891,0.1480865,118960.0,118950.0,0.1203283]
[1759376567294,0.1280865,118960.0,118950.0,0.1203283]
[1759376567486,0.1440865,118960.0,118950.0,0.1203283]
[1759376568293,0.50297269,118960.0,118950.0,0.1203283]
[1759376570689,0.50297269,118960.0,118950.0,0.01385]
[1759376571000,0.0840283,118950.0,118940.0,0.05513252]
[1759376571293,1.13309329,118950.0,118940.0,0.05513252]
[1759376572901,1.15409329,118950.0,118940.0,0.05513252]
[1759376573199,0.8792283,118950.0,118940.0,0.13916782]
[1759376573403,1.15409329,118950.0,118940.0,0.13916782]
[1759376575204,1.13309329,118950.0,118940.0,0.14916782]
[1759376575796,1.13309329,118950.0,118940.0,0.13916782]
[1759376576002,1.14309329,118950.0,118940.0,0.14916782]
[1759376576202,1.05906499,118950.0,118940.0,0.14916782]
[1759376576606,0.7742,118950.0,118940.0,0.13916782]
[1759376576800,1.05906499,118950.0,118940.0,0.13916782]
[1759376577899,0.28486499,118950.0,118940.0,0.13916782]
[1759376578106,0.784,118950.0,118940.0,0.13916782]
[1759376578294,1.05886499,118950.0,118940.0,0.13916782]
[1759376579100,0.28486499,118950.0,118940.0,0.13916782]
[1759376579605,0.36889329,118950.0,118940.0,0.13916782]
[1759376579796,0.01,118950.0,118940.0,0.13916782]
[1759376579996,0.01,118950.0,118940.0,0.81403281]
[1759376580196,0.01,118950.0,118940.0,0.84821548]
[1759376580602,0.01005,118950.0,118940.0,0.84821548]
[1759376581796,0.01005,118950.0,118940.0,1.02168594]
[1759376582005,1.21041416,118960.0,118950.0,0.1184183]
[1759376582199,1.21041416,118960.0,118950.0,0.42746596]
[1759376583206,1.22441416,118960.0,118950.0,0.42746596]
[1759376584006,1.22441416,118960.0,118950.0,0.1184183]
[1759376584203,1.22441416,118960.0,118950.0,0.42746596]
[1759376584404,0.45113416,118960.0,118950.0,0.42746596]
[1759376584603,0.43713416,118960.0,118950.0,0.43946596]
[1759376586005,0.43718416,118960.0,118950.0,0.43946596]
[1759376593807,0.10293474,118960.0,118950.0,0.90807327]
[1759376594007,0.10293474,118960.0,118950.0,0.92310734]
[1759376594209,0.32393198,118970.0,118960.0,0.1184112]
[1759376594419,0.32393198,118970.0,118960.0,0.42745886]
[1759376594812,0.30904766,118980.0,118970.0,0.1184041]
[1759376595016,0.30904766,118980.0,118970.0,0.42745176]
[1759376596117,0.00947677,118990.0,118980.0,0.1183971]
[1759376596416,0.00947677,118990.0,118980.0,0.42744476]
[1759376596620,0.00947677,118990.0,118980.0,0.73649242]
[1759376596812,0.31691357,119010.0,119000.0,0.0839929]
[1759376597014,5e-05,119020.0,119010.0,0.1183759]
[1759376597218,0.30909766,119020.0,119010.0,0.42742356]
[1759376597720,0.31866127,119020.0,119010.0,0.42742356]
[1759376598219,0.0839614,119050.0,119030.0,0.1203378]
[1759376598522,0.0839614,119050.0,119040.0,0.03637]
[1759376598726,1.18132528,119050.0,119040.0,0.1203347]
[1759376598921,0.84734874,119050.0,119040.0,0.1203347]
[1759376599423,1.2403541,119050.0,119040.0,0.01385]
[1759376599722,1.33130644,119050.0,119030.0,0.136337]
[1759376599917,0.61809532,119040.0,119030.0,0.136337]
[1759376600119,0.30904766,119040.0,119030.0,0.136337]
[1759376600422,0.30904766,119040.0,119030.0,0.120337]
[1759376602012,0.31704766,119040.0,119030.0,0.132337]
[1759376605126,0.008,119040.0,119030.0,0.132337]
[1759376605327,0.31704766,119040.0,119030.0,0.132337]
[1759376608127,0.71006002,119040.0,119030.0,0.132337]
[1759376608325,1.11006002,119040.0,119030.0,0.012]
[1759376609130,1.11006002,119040.0,119030.0,0.02584]
[1759376610024,1.11006002,119040.0,119030.0,0.1098118]
[1759376613530,1.11006002,119040.0,119030.0,0.1311618]
[1759376614326,0.71704766,119040.0,119030.0,0.1311618]
[1759376614531,1.08876766,119040.0,119030.0,0.1311618]
[1759376617232,1.17273236,119040.0,119030.0,0.1311618]
[1759376621228,1.48178002,119040.0,119030.0,0.1311618]
[1759376621430,1.48183002,119040.0,119030.0,0.1311618]
[1759376626238,1.50413207,119040.0,119030.0,0.1311618]
[1759376627040,1.19508441,119040.0,119030.0,0.1311618]
[1759376627243,1.50413207,119040.0,119030.0,0.1311618]
[1759376628943,1.19508441,119040.0,119030.0,0.1311618]
[1759376629140,1.19480441,119040.0,119030.0,0.1311618]
[1759376632536,1.19480441,119040.0,119030.0,0.012]
[1759376632744,1.50385207,119040.0,119030.0,0.012]
[1759376633342,0.73241207,119040.0,119030.0,0.1316518]
[1759376633540,0.88575675,119040.0,119030.0,0.1316518]
[1759376633739,1.50385207,119040.0,119030.0,0.1316518]
[1759376634642,1.50385207,119040.0,119030.0,0.1096518]
[1759376638451,1.50385207,119040.0,119030.0,0.012]
[1759376638850,1.90385207,119040.0,119030.0,0.012]
[1759376639050,1.90385207,119040.0,119030.0,0.0959718]
[1759376639552,1.90381207,119040.0,119030.0,0.1316518]
[1759376641363,0.73241207,119040.0,119030.0,0.1316518]
[1759376641552,0.00805,119040.0,119030.0,0.1316518]
[1759376641756,1.08845766,119040.0,119030.0,0.1316518]
[1759376642259,1.05377821,119040.0,119030.0,0.1316518]
[1759376644263,0.00805,119040.0,119030.0,0.1316518]
[1759376644463,0.00805,119040.0,119030.0,0.5316518]
[1759376644659,0.59057,119040.0,119030.0,0.5316518]
[1759376645164,0.00805,119040.0,119030.0,0.5316518]
[1759376645367,1.05377821,119040.0,119030.0,0.5316518]
[1759376645561,0.77941,119040.0,119030.0,0.5316518]
[1759376645765,1.05377821,119040.0,119030.0,0.5316518]
[1759376646071,1.40203209,119040.0,119030.0,0.012]
[1759376646257,1.40203209,119040.0,119030.0,0.0959718]
[1759376646463,1.12766388,119040.0,119030.0,0.0959718]
[1759376646761,1.12766388,119040.0,119030.0,0.1316518]
[1759376647360,1.12766388,119040.0,119030.0,0.1096518]
[1759376647667,1.12766388,119040.0,119030.0,0.1316518]
[1759376648962,1.12766388,119040.0,119030.0,0.1096518]
[1759376649271,1.14461047,119040.0,119030.0,0.012]
[1759376649459,1.14461047,119040.0,119030.0,0.0959718]
[1759376649460,1.12766388,119040.0,119030.0,0.0959718]
[1759376650365,1.12766388,119040.0,119030.0,0.012]
[1759376651173,1.12766388,119040.0,119030.0,0.0959718]
[1759376653367,1.1140138,119040.0,119030.0,0.0959718]
[1759376656563,1.38838201,119040.0,119030.0,0.012]
[1759376656764,1.1140138,119040.0,119030.0,0.0959718]
[1759376658366,1.1140138,119040.0,119030.0,0.1086518]
[1759376658569,1.1140138,119040.0,119030.0,0.1297618]
[1759376660969,1.12961291,119040.0,119030.0,0.1297618]
[1759376664874,1.04564821,119040.0,119030.0,0.1297618]
[1759376665063,0.43388885,119050.0,119040.0,0.0839647]
[1759376665268,1.15364885,119050.0,119040.0,0.1194947]
[1759376665467,0.87928064,119050.0,119040.0,0.1194947]
[1759376665671,1.15364885,119050.0,119040.0,0.1194947]
[1759376665874,1.1299207,119050.0,119040.0,0.1194947]
[1759376666268,1.1299207,119050.0,119040.0,0.1424947]
[1759376666469,1.1299207,119050.0,119040.0,0.1194947]
[1759376666670,1.1299207,119050.0,119040.0,0.1234947]
[1759376667475,1.14285547,119050.0,119040.0,0.1234947]
[1759376667774,1.14285547,119050.0,119040.0,0.1009847]
[1759376668476,1.14285547,119050.0,119040.0,0.004]
[1759376670075,1.14285547,119050.0,119040.0,0.0879647]
[1759376670376,1.81722368,119050.0,119040.0,0.004]
[1759376670579,1.54285547,119050.0,119040.0,0.004]
[1759376672678,1.54285547,119050.0,119040.0,0.0879647]
[1759376674980,1.55982551,119050.0,119040.0,0.0879647]
[1759376679578,1.15982551,119050.0,119040.0,0.0879647]
[1759376679981,1.15982551,119050.0,119040.0,0.004]
[1759376685187,1.43419372,119050.0,119040.0,0.004]
[1759376685784,1.15982551,119050.0,119040.0,0.0879647]
[1759376687787,1.15982551,119050.0,119040.0,0.1236647]
[1759376688384,1.15982551,119050.0,119040.0,0.1011547]
[1759376688585,1.15982551,119050.0,119040.0,0.0879647]
[1759376690190,1.15982551,119050.0,119040.0,0.1011547]
[1759376691089,1.43419372,119050.0,119040.0,0.004]
[1759376691286,1.45653273,119050.0,119040.0,0.004]
[1759376693190,0.73677273,119050.0,119040.0,0.004]
[1759376693587,1.50773273,119050.0,119040.0,0.004]
[1759376696491,0.0839788,119020.0,119010.0,0.1179019]
[1759376696787,1.12930701,119020.0,119010.0,0.1179019]
[1759376696992,1.12926701,119020.0,119010.0,0.19339615]
[1759376697386,1.12926701,119020.0,119010.0,0.1179019]
[1759376697793,1.12926701,119020.0,119010.0,0.1269019]
[1759376698198,0.35834701,119020.0,119010.0,0.1269019]
[1759376698390,1.12926701,119020.0,119010.0,0.1269019]
[1759376698696,1.14026701,119020.0,119010.0,0.1179019]
[1759376700697,0.36934701,119020.0,119010.0,0.1179019]
[1759376700996,1.14026701,119020.0,119010.0,0.1179019]
[1759376702292,1.1747086,119020.0,119010.0,0.1179019]
[1759376704899,1.0907298,119020.0,119010.0,0.1179019]
[1759376706199,0.3198098,119020.0,119010.0,0.1179019]
[1759376706398,1.1747086,119020.0,119010.0,0.1179019]
[1759376706598,1.1746686,119020.0,119010.0,0.1179019]
[1759376709203,1.1746686,119020.0,119000.0,0.08868425]
[1759376709204,0.0839859,119010.0,119000.0,0.19368275]
[1759376709400,0.69152341,119010.0,119000.0,0.0971785]
[1759376709591,0.70884221,119010.0,119000.0,0.0839885]
[1759376709794,0.0839929,119000.0,118990.0,0.07557012]
[1759376709997,1.4724525,119000.0,118990.0,7.587e-05]
[1759376710598,1.1636427,119000.0,118990.0,7.587e-05]
[1759376710999,1.54018326,119000.0,118990.0,7.587e-05]
[1759376711204,0.084,118990.0,118980.0,0.00157]
[1759376711399,0.7016196,118990.0,118980.0,0.00157]
[1759376712301,0.70170532,118990.0,118980.0,0.00157]
[1759376712700,0.0840141,118970.0,118960.0,0.0972085]
[1759376712997,1.0796898,118970.0,118950.0,0.2131354]
[1759376713203,0.392831,118960.0,118950.0,0.13764115]
[1759376714404,0.32146314,118960.0,118950.0,0.13764115]
[1759376714604,1.09234314,118960.0,118950.0,0.15364115]
[1759376714803,1.15906842,118960.0,118950.0,0.15364115]
[1759376715104,1.15906842,118960.0,118950.0,0.13764115]
[1759376715304,1.15906842,118960.0,118950.0,0.15364115]
[1759376715500,1.24708942,118960.0,118950.0,0.06961715]
[1759376715707,1.55593922,118960.0,118950.0,0.016]
[1759376715907,1.24708942,118960.0,118950.0,0.0502]
[1759376716303,1.24708942,118960.0,118950.0,0.1342281]
[1759376717809,1.55589922,118960.0,118950.0,0.1342281]
[1759376719107,1.16314842,118960.0,118950.0,0.1342281]
[1759376719308,1.16310842,118960.0,118950.0,0.1342281]
[1759376719608,1.24712952,118960.0,118950.0,0.1342281]
[1759376720012,1.24712952,118960.0,118950.0,0.0502]
[1759376720213,1.55593932,118960.0,118950.0,0.016]
[1759376720416,0.0840281,118950.0,118940.0,6.966e-05]
[1759376720615,0.7016477,118950.0,118940.0,6.966e-05]
[1759376721113,1.1016477,118950.0,118940.0,6.966e-05]
[1759376721707,1.8726077,118950.0,118940.0,6.966e-05]
[1759376722311,1.1106477,118950.0,118940.0,0.02006966]
[1759376722615,1.8816077,118950.0,118940.0,0.02006966]
[1759376725924,1.8816877,118950.0,118940.0,0.02006966]
[1759376726920,1.1106477,118950.0,118940.0,0.02006966]
[1759376727120,1.8816477,118950.0,118940.0,0.02006966]
[1759376727821,1.1106477,118950.0,118940.0,0.02006966]
[1759376728024,1.8816877,118950.0,118940.0,0.02006966]
[1759376731020,2.1904975,118950.0,118940.0,0.02006966]
[1759376731221,2.1904975,118950.0,118920.0,0.01319]
[1759376731222,0.0840422,118930.0,118920.0,0.03546]
[1759376731421,1.4726618,118930.0,118920.0,0.01319]
[1759376732515,1.4726618,118930.0,118920.0,0.03546]
[1759376733225,1.4726618,118930.0,118920.0,0.02119]
[1759376733525,0.0840422,118930.0,118920.0,0.03546]
[1759376733716,1.4847018,118930.0,118920.0,0.03546]
[1759376734428,0.0840491,118920.0,118910.0,0.03542]
[1759376734725,0.70175186,118920.0,118910.0,0.03542]
[1759376736428,0.70175186,118920.0,118910.0,0.04642]
[1759376736726,0.70175186,118920.0,118910.0,0.03542]
[1759376737026,1.48075186,118920.0,118910.0,0.03542]
[1759376738331,1.54821216,118920.0,118910.0,0.03542]
[1759376739934,1.23940236,118920.0,118910.0,0.5194762]
[1759376740433,1.23940236,118920.0,118910.0,0.1194762]
[1759376740731,1.54821216,118920.0,118910.0,0.1194762]
[1759376741928,0.46840236,118920.0,118910.0,0.5194762]
[1759376742240,1.10884236,118920.0,118910.0,0.5194762]
[1759376742431,1.15535326,118920.0,118910.0,0.828286]
[1759376742733,0.00808316,118920.0,118910.0,0.91237968]
[1759376742932,0.00808316,118920.0,118910.0,1.00436831]
[1759376743326,0.3928411,118950.0,118940.0,0.120275]
[1759376743526,0.415277,118950.0,118940.0,0.120275]
[1759376743728,1.186277,118950.0,118940.0,0.120275]
[1759376744328,1.18634922,118950.0,118940.0,0.120275]
[1759376744629,1.20534922,118950.0,118940.0,0.120275]
[1759376745032,1.20530922,118950.0,118940.0,0.120275]
[1759376745230,0.89649942,118950.0,118940.0,0.120275]
[1759376745430,1.20530922,118950.0,118940.0,0.120275]
[1759376745631,0.41534582,118950.0,118940.0,0.126275]
[1759376745832,1.18630582,118950.0,118940.0,0.126275]
[1759376748429,1.49511562,118950.0,118940.0,0.006]
[1759376748634,1.89511562,118950.0,118940.0,0.006]
[1759376749029,0.0840421,118930.0,118920.0,0.01397]
[1759376749336,1.4949776,118930.0,118920.0,0.01397]
[1759376749932,1.4949776,118930.0,118920.0,0.0980191]
[1759376750134,1.1861678,118930.0,118920.0,0.0980191]
[1759376750336,1.1971678,118930.0,118920.0,0.0980191]
[1759376750532,1.1971678,118930.0,118920.0,0.1315991]
[1759376751034,1.5059776,118930.0,118920.0,0.04755]
[1759376751435,1.1971678,118930.0,118920.0,0.04755]
[1759376751836,1.1131257,118930.0,118920.0,0.1315991]
[1759376752034,0.3422457,118930.0,118920.0,0.5315991]
[1759376752229,0.7941159,118930.0,118920.0,0.8404089]
[1759376752537,1.0804898,118930.0,118920.0,0.5315991]
[1759376754938,1.1645318,118930.0,118920.0,0.04755]
[1759376755138,1.18668772,118930.0,118920.0,0.04755]
[1759376755438,0.4038518,118930.0,118920.0,0.04755]
[1759376755638,1.1746518,118930.0,118920.0,0.04755]
[1759376757035,0.865842,118930.0,118920.0,0.04755]
[1759376757241,1.1746518,118930.0,118920.0,0.04755]
[1759376759441,1.1746118,118930.0,118920.0,0.04755]
[1759376759640,1.1746118,118930.0,118920.0,0.02597]
[1759376760645,1.1746118,118930.0,118920.0,0.04755]
[1759376764347,1.14072312,118930.0,118920.0,0.04755]
[1759376766338,1.14072312,118930.0,118920.0,0.012]
[1759376766544,1.54072312,118930.0,118920.0,0.012]
[1759376777351,0.495042,118930.0,118920.0,0.04732]
[1759376777540,1.38908312,118930.0,118920.0,0.1313691]
[1759376777744,1.38908312,118930.0,118920.0,0.04732]
[1759376778348,1.36533038,118930.0,118920.0,0.04732]
[1759376779955,0.74621038,118930.0,118920.0,0.04732]
[1759376780257,1.51709038,118930.0,118920.0,0.04732]
[1759376780555,1.51709038,118930.0,118920.0,0.02574]
[1759376781054,1.51709038,118930.0,118920.0,0.08614149]
[1759376785151,1.51709038,118930.0,118920.0,0.07414149]
[1759376785350,1.52709038,118930.0,118920.0,0.07414149]
[1759376785550,1.51709038,118930.0,118920.0,0.07414149]
[1759376785856,1.51709038,118930.0,118920.0,0.08714149]
[1759376786044,1.53109038,118930.0,118920.0,0.08714149]
[1759376787656,1.53109038,118930.0,118920.0,0.07340149]
[1759376788157,1.53109038,118930.0,118920.0,0.013]
[1759376793355,1.53109038,118930.0,118920.0,0.0970491]
[1759376794356,1.51742702,118930.0,118920.0,0.0970491]
[1759376796862,1.51742702,118930.0,118920.0,0.1096691]
[1759376798563,0.74654702,118930.0,118920.0,0.1306891]
[1759376798763,1.51722702,118930.0,118920.0,0.1306891]
[1759376799665,1.11722702,118930.0,118920.0,0.1306891]
[1759376799967,1.11722702,118930.0,118920.0,0.1096691]
[1759376803570,0.34654702,118930.0,118920.0,0.1096691]
[1759376803772,1.02138702,118930.0,118920.0,0.1096691]
[1759376804471,1.02138702,118930.0,118920.0,0.1306891]
[1759376804672,0.34654702,118930.0,118920.0,0.1306891]
[1759376804865,0.35930031,118930.0,118920.0,0.1306891]
[1759376805067,0.89774031,118930.0,118920.0,0.1306891]
[1759376806769,0.89740312,118930.0,118920.0,0.1306891]
[1759376806976,0.88765071,118930.0,118920.0,0.1306891]
[1759376809374,0.34921071,118930.0,118920.0,0.1306891]
[1759376809575,0.89369071,118930.0,118920.0,0.1306891]
[1759376817579,0.88002771,118930.0,118920.0,0.1306891]
[1759376822285,0.88002771,118930.0,118920.0,0.013]
[1759376822485,0.0840561,118910.0,118900.0,0.08923425]
[1759376822692,1.12960944,118910.0,118900.0,0.08923425]
[1759376823286,1.12960944,118910.0,118900.0,0.07549425]
[1759376823492,0.0840635,118900.0,118890.0,0.19301098]
[1759376823692,0.35898462,118900.0,118890.0,0.19301098]
[1759376824085,0.35898462,118900.0,118890.0,0.10894468]
[1759376824291,0.7029894,118900.0,118890.0,0.10894468]
[1759376824493,0.7029894,118900.0,118890.0,0.08923425]
[1759376825183,0.7029894,118900.0,118890.0,0.01374]
[1759376825385,0.7059894,118900.0,118890.0,0.01374]
[1759376826395,0.7029894,118900.0,118890.0,0.02374]
[1759376826694,0.7029894,118900.0,118890.0,0.01]
[1759376827296,0.77081068,118900.0,118890.0,0.01]
[1759376827595,0.79932749,118900.0,118890.0,0.01]
[1759376829497,1.19932749,118900.0,118890.0,0.01]
[1759376830197,0.0840705,118890.0,118880.0,7.476e-05]
[1759376830396,1.4735564,118890.0,118880.0,7.476e-05]
[1759376832598,1.4785564,118890.0,118880.0,7.476e-05]
[1759376832797,1.4785564,118890.0,118880.0,0.01507476]
[1759376833192,0.7079964,118890.0,118880.0,0.01507476]
[1759376833397,1.4785564,118890.0,118880.0,0.01507476]
[1759376833902,1.4785964,118890.0,118880.0,0.01507476]
[1759376835601,1.4785564,118890.0,118880.0,0.01507476]
[1759376837901,0.0890705,118890.0,118880.0,0.05055476]
[1759376838204,1.4785964,118890.0,118880.0,0.01507476]
[1759376840699,1.4793964,118890.0,118880.0,0.01507476]
[1759376841905,0.7079964,118890.0,118880.0,0.01507476]
[1759376842104,1.4794764,118890.0,118880.0,0.01507476]
[1759376843711,1.4837164,118890.0,118880.0,0.01507476]
[1759376844115,0.7079964,118890.0,118880.0,0.01507476]
[1759376844314,1.4834764,118890.0,118880.0,0.01507476]
[1759376844512,0.7079964,118890.0,118880.0,0.01507476]
[1759376844811,1.4833964,118890.0,118880.0,0.01507476]
[1759376848714,0.7079964,118890.0,118880.0,0.01507476]
[1759376849013,1.79229935,118890.0,118880.0,0.01507476]
[1759376849411,0.0840844,118870.0,118860.0,0.1190115]
[1759376849612,1.4777303,118870.0,118860.0,0.1190115]
[1759376850109,1.4777303,118870.0,118850.0,0.1190125]
[1759376850312,0.61902863,118860.0,118850.0,0.1190125]
[1759376850512,0.61902863,118860.0,118850.0,0.5190125]
[1759376850712,0.61902863,118860.0,118850.0,0.1190125]
[1759376851111,0.30956568,118860.0,118850.0,0.1190125]
[1759376851312,0.70312033,118860.0,118850.0,0.1190125]
[1759376851509,1.54401246,118860.0,118850.0,0.01374]
[1759376851710,0.76961246,118860.0,118850.0,0.1190188]
[1759376852017,1.54397246,118860.0,118850.0,0.1190188]
[1759376852511,1.54393246,118860.0,118850.0,0.1330188]
[1759376852914,0.76961246,118860.0,118850.0,0.1330188]
[1759376853110,1.54389246,118860.0,118850.0,0.1330188]
[1759376853316,1.54381246,118860.0,118850.0,0.1330188]
[1759376853710,1.15033781,118860.0,118850.0,0.5330188]
[1759376854219,1.23442951,118860.0,118850.0,0.5190188]
[1759376854406,1.24042951,118860.0,118850.0,0.5190188]
[1759376854609,1.24030951,118860.0,118850.0,0.5190188]
[1759376854808,0.07259486,118860.0,118850.0,0.82848175]
[1759376855017,1.15621781,118860.0,118850.0,0.82848175]
[1759376855817,1.15633781,118860.0,118850.0,0.82848175]
[1759376856316,0.78042273,118860.0,118850.0,0.82848175]
[1759376856519,0.31556568,118860.0,118850.0,0.82848175]
[1759376856721,1.08976568,118860.0,118850.0,0.82848175]
[1759376857618,1.08976568,118860.0,118850.0,0.5190188]
[1759376857922,0.00610273,118860.0,118850.0,0.82848175]
[1759376858122,0.51498273,118860.0,118850.0,0.82848175]
[1759376859524,0.51498273,118860.0,118850.0,0.1190188]
[1759376859713,0.51498273,118860.0,118850.0,0.42848175]
[1759376860821,1.08932568,118860.0,118850.0,0.42848175]
[1759376861016,1.08932568,118860.0,118850.0,0.1190188]
[1759376861228,1.39878863,118860.0,118850.0,0.1190188]
[1759376861924,1.39866863,118860.0,118850.0,0.1190188]
[1759376862113,1.08920568,118860.0,118850.0,0.1190188]
[1759376862518,1.39866863,118860.0,118850.0,0.1190188]
[1759376862914,1.08920568,118860.0,118850.0,0.1190188]
[1759376863119,1.39866863,118860.0,118850.0,0.1190188]